fUST/lending_fUST_20240127
["ID","MTS","AMOUNT","RATE_DAILY","PERIOD"]
[312844269,1706341840369,-1286.8,0.00030136,2]
[312844270,1706341840378,-500.0,0.00030136,2]
[312844271,1706341840388,-500.0,0.00030136,2]
[312844272,1706341840398,-500.0,0.00030136,2]
[312844273,1706341840408,-500.0,0.00030136,2]
[312844274,1706341840417,-500.0,0.00030136,2]
[312844275,1706341840426,-500.0,0.00030136,2]
[312844276,1706341840435,-500.0,0.00030136,2]
[312844277,1706341840444,-500.0,0.00030136,2]
[312844278,1706341840454,-506.9897119,0.00030136,2]
[312844279,1706341840463,-500.0,0.00030136,2]
[312844280,1706341840472,-500.0,0.00030136,2]
[312844281,1706341840482,-500.0,0.00030136,2]
[312844282,1706341840491,-500.0,0.00030136,2]
[312844283,1706341840501,-500.0,0.00030136,2]
[312844285,1706341840622,-1103.35,0.00030136,2]
[312844287,1706341840633,-560.12,0.00030136,2]
[312844289,1706341840643,-500.0,0.00030136,2]
[312844291,1706341840653,-500.0,0.00030136,2]
[312844292,1706341840663,-500.0,0.00030136,2]
[312844293,1706341840672,-539.64,0.00030136,2]
[312844294,1706341840682,-2054.21,0.00030136,2]
[312844296,1706341840690,-500.0,0.00030136,2]
[312844298,1706341840699,-500.0,0.00030136,2]
[312844300,1706341840708,-546.1840453,0.00030136,2]
[312844302,1706341840718,-500.0,0.00030136,2]
[312844305,1706341840727,-500.0,0.00030136,2]
[312844306,1706341840737,-500.0,0.00030136,2]
[312844307,1706341840747,-500.0,0.00030136,2]
[312844309,1706341840757,-151.98601287,0.00030136,2]
[312844311,1706341840766,-609.62693908,0.00030136,2]
[312844312,1706341840775,-500.0,0.00030136,2]
[312844313,1706341840784,-500.0,0.00030136,2]
[312844314,1706341840795,-1378.92,0.00030136,2]
[312844315,1706341840804,-500.0,0.00030136,2]
[312844316,1706341840813,-603.91728063,0.00030136,2]
[312844317,1706341840822,-211.0615559,0.00030136,30]
[312844318,1706341840831,-500.0,0.00030136,2]
[312844319,1706341840841,-500.0,0.00030136,2]
[312844320,1706341840853,-151.0,0.00030136,2]
[312844321,1706341840863,-151.0,0.00030136,2]
[312844322,1706341840873,-500.0,0.00030136,2]
[312844323,1706341840882,-2596.87,0.00030136,2]
[312844324,1706341840894,-550.10407402,0.00030136,2]
[312844325,1706341840903,-500.0,0.00030136,2]
[312844326,1706341840913,-454.86416052,0.00030136,2]
[312844327,1706341840924,-524.05281637,0.00030136,2]
[312844328,1706341840934,-500.0,0.00030136,2]
[312844329,1706341840945,-500.0,0.00030136,2]
[312844330,1706341840955,-151.743959,0.00030136,2]
[312844331,1706341840965,-584.94282053,0.00030136,2]
[312844332,1706341840974,-236.74255742,0.00030136,7]
[312844334,1706341840984,-500.0,0.00030136,2]
[312844335,1706341840994,-502.98959405,0.00030136,7]
[312844336,1706341841004,-200.62236837,0.00030136,2]
[312844337,1706341841014,-500.0,0.00030136,2]
[312844338,1706341841023,-192.05989566,0.00030136,2]
[312844339,1706341841033,-500.0,0.00030136,2]
[312844340,1706341841043,-533.51635224,0.00030136,2]
[312844341,1706341841052,-500.0,0.00030136,2]
[312844342,1706341841061,-500.0,0.00030136,2]
[312844343,1706341841070,-151.0,0.00030136,2]
[312844344,1706341841080,-500.0,0.00030136,2]
[312844345,1706341841089,-500.0,0.00030136,2]
[312844346,1706341841099,-500.0,0.00030136,2]
[312844347,1706341841110,-500.0,0.00030136,2]
[312844348,1706341841119,-500.0,0.00030136,2]
[312844349,1706341841128,-500.0,0.00030136,2]
[312844350,1706341841136,-1853.71,0.00030136,2]
[312844351,1706341841145,-500.0,0.00030136,2]
[312844352,1706341841154,-500.0,0.00030136,2]
[312844353,1706341841164,-500.0,0.00030136,2]
[312844354,1706341841174,-894.55,0.00030136,2]
[312844355,1706341841184,-500.0,0.00030136,2]
[312844356,1706341841194,-500.0,0.00030136,2]
[312844357,1706341841205,-500.0,0.00030136,2]
[312844358,1706341841214,-261.68946611,0.00030136,2]
[312844359,1706341841226,-502.01,0.00030136,2]
[312844360,1706341841236,-1760.51,0.00030136,2]
[312844361,1706341841248,-833.61,0.00030136,2]
[312844362,1706341841258,-500.0,0.00030136,2]
[312844363,1706341841269,-500.0,0.00030136,2]
[312844364,1706341841280,-1003.47,0.00030136,2]
[312844365,1706341841289,-519.63588147,0.00030136,2]
[312844366,1706341841300,-500.0,0.00030136,2]
[312844367,1706341841310,-500.0,0.00030136,2]
[312844368,1706341841320,-500.0,0.00030136,2]
[312844369,1706341841330,-500.0,0.00030136,2]
[312844370,1706341841339,-500.0,0.00030136,2]
[312844371,1706341841349,-500.0,0.00030136,2]
[312844372,1706341841359,-497.28316488,0.00030136,2]
[312844373,1706341841368,-500.0,0.00030136,2]
[312844374,1706341841377,-752.65,0.00030136,2]
[312844375,1706341841386,-500.0,0.00030136,2]
[312844376,1706341841397,-500.0,0.00030136,2]
[312844377,1706341841407,-508.73,0.00030136,2]
[312844378,1706341841418,-500.0,0.00030136,2]
[312844379,1706341841428,-500.0,0.00030136,2]
[312844380,1706341841437,-500.0,0.00030136,2]
[312844381,1706341841447,-500.0,0.00030136,2]
[312844382,1706341841458,-500.0,0.00030136,2]
[312844383,1706341841468,-703.76,0.00030136,2]
[312844384,1706341841478,-2686.34,0.00030136,2]
[312844385,1706341841488,-1498.53,0.00030136,2]
[312844386,1706341841498,-219.366914,0.00030136,2]
[312844387,1706341841508,-500.0,0.00030136,2]
[312844388,1706341841517,-500.0,0.00030136,2]
[312844389,1706341841526,-500.0,0.00030136,2]
[312844390,1706341841536,-500.0,0.00030136,2]
[312844391,1706341841545,-500.0,0.00030136,2]
[312844392,1706341841554,-500.0,0.00030136,2]
[312844393,1706341841563,-12740.0,0.00030136,2]
[312844394,1706341841573,-500.0,0.00030136,2]
[312844395,1706341841582,-500.0,0.00030136,2]
[312844396,1706341841591,-500.0,0.00030136,2]
[312844397,1706341841601,-4428.93,0.00030136,2]
[312844398,1706341841611,-500.0,0.00030136,2]
[312844399,1706341841621,-500.0,0.00030136,2]
[312844400,1706341841632,-2570.48,0.00030136,2]
[312844401,1706341841641,-500.0,0.00030136,2]
[312844402,1706341841651,-500.0,0.00030136,2]
[312844403,1706341841660,-1000.0,0.00030136,2]
[312844404,1706341841670,-3399.96,0.00030136,2]
[312844405,1706341841679,-151.0,0.00030136,2]
[312844406,1706341841689,-3248.04,0.00030136,2]
[312844407,1706341841698,-151.0,0.00030136,2]
[312844408,1706341841708,-4880.21,0.00030136,2]
[312844409,1706341841719,-151.0,0.00030136,2]
[312844410,1706341841728,-151.0,0.00030136,2]
[312844411,1706341841738,-500.0,0.00030136,2]
[312844412,1706341841748,-151.0,0.00030136,2]
[312844413,1706341841758,-266.988647,0.00030136,2]
[312844414,1706341841767,-500.0,0.00030136,2]
[312844415,1706341841778,-1047.7,0.00030136,2]
[312844416,1706341841787,-500.0,0.00030136,2]
[312844417,1706341841797,-500.0,0.00030136,2]
[312844418,1706341841807,-788.74,0.00030136,2]
[312844419,1706341841817,-508.06,0.00030136,2]
[312844420,1706341841827,-30670.18202228,0.00030136,2]
[312844421,1706341841958,-10202.84952288,0.00030136,2]
[312844422,1706341841970,-1135.59381546,0.00030136,2]
[312844692,1706342321742,4989.0,0.000231,4]
[312844693,1706342507819,150.96980604,0.00029995,120]
[312844722,1706343033445,-453.1775686,0.00025304,2]
[312844723,1706343033455,-300.0,0.00025305,2]
[312844724,1706343033463,-183.208202,0.00025312,2]
[312844725,1706343033472,-167.898325,0.00025375,2]
[312844726,1706343033481,-18917.23049455,0.00025416,2]
[312844727,1706343033490,-8706.5139435,0.00025417,2]
[312844728,1706343033499,-684.7498584,0.00025483,2]
[312844729,1706343033508,-241.485214,0.00026,2]
[312844730,1706343033517,-620.66518043,0.000264,2]
[312844731,1706343033528,-1901.44944296,0.000275,2]
[312844732,1706343033536,-620.03325902,0.0002772,2]
[312844733,1706343033546,-224.84714308,0.00028,7]
[312844734,1706343033555,-290.6944281,0.00028627,2]
[312844735,1706343033564,-4371.07,0.0002863,3]
[312844736,1706343033573,-3642.56,0.0002863,3]
[312844737,1706343033582,-10381.96537849,0.0002864,5]
[312844738,1706343033593,-706.923652,0.0002864,5]
[312844755,1706343037783,-523.34168566,0.00025303,2]
[312844757,1706343037792,-788.15764635,0.0002864,5]
[312844759,1706343037803,-1571.92043813,0.0002864,5]
[312844761,1706343037815,-7778.49498534,0.0002864,5]
[312844770,1706343037999,-1298.23,0.0002864,5]
[312844771,1706343038011,-27474.30789969,0.0002864,5]
[312844772,1706343038021,-165.261124,0.00028733,2]
[312844773,1706343038031,-158.32858575,0.00029,2]
[312844774,1706343038041,-1933.42796518,0.00029,2]
[312844775,1706343038051,-620.00166295,0.00029106,2]
[312844776,1706343038060,-200.0,0.00029203,15]
[312844777,1706343038069,-3486.61806957,0.00029299,2]
[312844778,1706343038079,-3122.86887342,0.000295,30]
[312844779,1706343038088,-6410.93029619,0.00029897,2]
[312844780,1706343038097,-161.07323855,0.00029897,2]
[312844781,1706343038106,-11035.14313489,0.00029897,2]
[312844782,1706343038116,-155.22768243,0.00029897,2]
[312844783,1706343038125,-640.86992768,0.00029897,2]
[312844784,1706343038134,-309.72125088,0.00029897,2]
[312844785,1706343038143,-1221.35607009,0.00029897,2]
[312844786,1706343038152,-244.18511034,0.00029897,2]
[312844787,1706343038161,-426.38170713,0.00029897,2]
[312844788,1706343038171,-2801.18464062,0.00029897,2]
[312844789,1706343038180,-1774.26080243,0.00029898,2]
[312844790,1706343038189,-2221.08094713,0.00029899,2]
[312844791,1706343038198,-66119.71339662,0.00029899,2]
[312844792,1706343038207,-276000.0,0.000299,2]
[312844793,1706343038216,-2173.2457664,0.000299,3]
[312844794,1706343038225,-151.50000152,0.00029935,2]
[312844795,1706343038236,-303.74433034,0.00029995,2]
[312844796,1706343038245,-3194.88866007,0.00029995,2]
[312844797,1706343038254,-764.75702273,0.00029995,2]
[312844798,1706343038265,-500.0,0.00029999,2]
[312844799,1706343038275,-355.0708129,0.00029999,2]
[312844800,1706343038284,-172.73238116,0.00029999,2]
[312844801,1706343038293,-158.06765206,0.00029999,2]
[312844802,1706343038302,-234.38710623,0.0003,3]
[312844803,1706343038312,-155.0,0.0003,2]
[312844804,1706343038321,-2373.62501968,0.0003,2]
[312844805,1706343038330,-154.98450155,0.0003,4]
[312844806,1706343038339,-28384.0,0.0003,2]
[312844807,1706343038350,-64583.0,0.0003,2]
[312844808,1706343038360,-75450.44577939,0.0003,4]
[312844809,1706343038372,-10202.84952288,0.0003,4]
[312844838,1706343040886,-300.0,0.00025303,2]
[312844839,1706343040896,-275.41863263,0.000298,2]
[312844840,1706343040905,-3035.46,0.00029887,3]
[312844841,1706343040915,-12032.59897303,0.0003,4]
[312844877,1706343437825,850.38,0.000231,4]
[312844878,1706343535023,634.14,0.00029,30]
[312844879,1706343573372,634.14,0.00029,30]
[312844880,1706343574008,634.14,0.00029,30]
[312844881,1706343574703,634.14,0.00029,30]
[312844882,1706343575408,634.14,0.00029,30]
[312844883,1706343576066,634.14,0.00029,30]
[312844884,1706343576923,634.14,0.00029,30]
[312844886,1706343633069,200.0,0.00029,30]
[312844962,1706344238035,-851.06760342,0.00027698,2]
[312844964,1706344238045,-523.34168566,0.00027699,2]
[312844966,1706344238055,-155.0,0.000277,4]
[312844968,1706344238064,-4727.98807036,0.000277,2]
[312844970,1706344238074,-3945.45216344,0.0002771,2]
[312844973,1706344238101,-809.54283377,0.0002771,2]
[312844974,1706344238112,-19811.11288862,0.0002771,2]
[312844975,1706344238124,-333.89211417,0.0002771,2]
[312844976,1706344238134,-165.261124,0.00028105,2]
[312844977,1706344238143,-303.74433034,0.00029,2]
[312844978,1706344238153,-764.75702273,0.00029,2]
[312844979,1706344238162,-3194.88866007,0.00029,2]
[312844980,1706344238172,-1000.0,0.00029,29]
[312844981,1706344238181,-1933.42796518,0.00029889,2]
[312844982,1706344238191,-72.55537595,0.0002989,3]
[312845025,1706344241062,-1791.42462405,0.0002989,3]
[312845027,1706344241071,-2218.89,0.0002989,3]
[312845029,1706344241081,-1849.07,0.0002989,3]
[312845030,1706344241090,-1540.9,0.0002989,3]
[312845032,1706344241099,-21712.58510753,0.000299,2]
[312845089,1706344243881,-7704.51348142,0.000299,2]
[312845105,1706344924996,155.0,0.00022423,4]
[312845106,1706345175514,155.0,0.00022412,4]
[312845107,1706345426048,155.0,0.000224,4]
[312845125,1706345432124,-260.56168343,0.00022401,2]
[312845126,1706345432133,-177.96927129,0.00022401,2]
[312845127,1706345432179,-826.52532691,0.00022401,2]
[312845128,1706345432188,-327.61566675,0.00022401,2]
[312845129,1706345432197,-181.11768672,0.00022402,2]
[312845130,1706345432206,-742.59131962,0.00022402,2]
[312845169,1706345438314,-1057.40868038,0.00022402,2]
[312845170,1706345438326,-2042.20085113,0.00022424,2]
[312845171,1706345438338,-1497.13959099,0.00026956,2]
[312845172,1706345438353,-2308.54967521,0.00026956,2]
[312845173,1706345438368,-6117.59137976,0.00026956,2]
[312845174,1706345438381,-1128.05,0.00026956,2]
[312845229,1706345442847,-155.0,0.00026908,4]
[312845233,1706345442857,-1956.70062854,0.00026956,2]
[312845238,1706345442869,-721.83834146,0.00026997,2]
[312845242,1706345442878,-620.00008315,0.00029033,2]
[312845247,1706345442887,-467.77945951,0.00029696,2]
[312845250,1706345442897,-235.38148734,0.00029703,2]
[312845253,1706345442908,-764.61851266,0.00029703,2]
[312845256,1706345442918,-1000.0,0.00029776,2]
[312845259,1706345442927,-200.0,0.000298,4]
[312845261,1706345442936,-151.50000152,0.0002984,2]
[312845264,1706345442945,-677.73,0.0002989,3]
[312845267,1706345442954,-155.00465014,0.00029898,2]
[312845270,1706345442963,-280.366271,0.00029898,2]
[312845273,1706345442972,-1583.7528565,0.00029898,2]
[312845276,1706345442981,-155.0,0.00029898,2]
[312845279,1706345442990,-155.0,0.00029898,2]
[312845282,1706345442999,-133.43362302,0.00029898,2]
[312845301,1706345443285,-6831.35757181,0.00029898,2]
[312845302,1706345443297,-2983.13060593,0.00029898,2]
[312845303,1706345443307,-1416.67721386,0.00029898,2]
[312845304,1706345443318,-155.0,0.00029899,2]
[312845305,1706345443327,-15588.16529781,0.00029899,2]
[312845311,1706345448180,-500.0,0.00029889,2]
[312845312,1706345448190,-181.48647454,0.00029898,2]
[312845313,1706345448201,-260.56168343,0.00029898,2]
[312845314,1706345448211,-327.61566675,0.00029898,2]
[312845315,1706345448220,-1105.86617528,0.00029899,2]
[312845325,1706345571977,500.0,0.00029136,120]
[312845326,1706345572754,398.36,0.00029136,120]
[312845370,1706346181464,3417.0,0.0003,120]
[312845930,1706346643423,-1004.4945982,0.00024958,2]
[312845932,1706346643433,-1343.89689322,0.00024959,2]
[312845963,1706346646462,-2577.69894225,0.00024959,2]
[312845965,1706346646471,-155.01705188,0.0002496,4]
[312845966,1706346646482,-260.56168343,0.0002496,2]
[312845968,1706346646493,-1200.0,0.0002496,2]
[312845969,1706346646503,-241.42418253,0.00025,2]
[312845970,1706346646513,-457.55669349,0.00025297,2]
[312845971,1706346646524,-168.5141544,0.00026835,2]
[312845972,1706346646534,-200.0,0.00027463,15]
[312845973,1706346646545,-9132.4701419,0.00029,4]
[312845974,1706346646555,-500.0,0.00029136,7]
[312845975,1706346646565,-500.0,0.00029136,7]
[312845976,1706346646575,-500.0,0.00029136,7]
[312845978,1706346646586,-500.0,0.00029136,7]
[312845980,1706346646595,-500.0,0.00029136,7]
[312845982,1706346646605,-500.0,0.00029136,7]
[312845983,1706346646613,-582.24,0.00029136,7]
[312845984,1706346646623,-764.61851266,0.00029753,2]
[312845985,1706346646635,-1000.0,0.00029782,2]
[312845986,1706346646644,-1171.12,0.0002979,3]
[312845987,1706346646653,-975.94,0.0002979,3]
[312845988,1706346646662,-1000.0,0.00029798,2]
[312845989,1706346646672,-150.0,0.000298,2]
[312845990,1706346646681,-200.3,0.000298,4]
[312845991,1706346646690,-144528.27464769,0.000298,2]
[312845992,1706346646699,-5000.0,0.00029842,5]
[312845993,1706346646708,-6709.80994895,0.00029888,3]
[312845994,1706346646718,-327.61566675,0.00029898,2]
[312845995,1706346646727,-9075.04434998,0.00029899,2]
[312845996,1706346646737,-2173.2457664,0.000299,3]
[312845997,1706346646746,-300.0,0.000299,2]
[312845998,1706346646755,-1000.0,0.00029911,2]
[312845999,1706346646763,-1000.0,0.00029922,2]
[312846000,1706346646773,-5000.0,0.00029931,5]
[312846001,1706346646782,-188.67079758,0.0002994,2]
[312846002,1706346646791,-1000.0,0.00029951,2]
[312846003,1706346646800,-1198.61763963,0.00029998,2]
[312846004,1706346646810,-619.76686499,0.00029998,2]
[312846005,1706346646818,-1386.24044694,0.00029998,2]
[312846006,1706346646828,-4140.12442368,0.00029998,2]
[312846007,1706346646926,-850.73963902,0.00029998,2]
[312846008,1706346646935,-1411.92625503,0.00029998,2]
[312846009,1706346646945,-231.4304946,0.00029998,2]
[312846010,1706346646954,-1991.96690588,0.00029999,2]
[312846011,1706346646963,-55690.59396071,0.00029999,4]
[312846012,1706346646972,-234.38710623,0.0003,3]
[312846013,1706346646981,-32549.60760527,0.0003,4]
[312846014,1706346646990,-167.04429254,0.0003,2]
[312846015,1706346646999,-2733.32904929,0.0003,2]
[312846016,1706346647009,-6205.88852965,0.0003,2]
[312846017,1706346647020,-2196.27781557,0.0003,2]
[312846018,1706346647030,-624.06787466,0.0003,14]
[312846019,1706346647040,-214721.8730404,0.0003,30]
[312846020,1706346647050,-689.09430435,0.0003,4]
[312846021,1706346647060,-30049.79,0.0003,2]
[312846022,1706346647071,-195.57103754,0.0003,2]
[312846023,1706346647082,-155.18643422,0.0003,2]
[312846024,1706346647093,-2062.76579212,0.0003,2]
[312846025,1706346647102,-179.67615527,0.0003,4]
[312846026,1706346647112,-1000.0,0.0003,30]
[312846027,1706346647121,-379.76109534,0.0003,20]
[312846028,1706346647132,-474.90146307,0.0003,4]
[312846029,1706346647144,-1027.50463707,0.0003,2]
[312846030,1706346647154,-4292.55674097,0.0003,4]
[312846031,1706346647162,-2072.0,0.0003,10]
[312846032,1706346647171,-219.366914,0.0003,2]
[312846033,1706346647180,-151.0,0.0003,2]
[312846034,1706346647192,-151.0,0.0003,2]
[312846035,1706346647201,-151.0,0.0003,2]
[312846036,1706346647211,-741.05148,0.0003,2]
[312846037,1706346647222,-741.05148,0.0003,2]
[312846038,1706346647231,-151.0,0.0003,2]
[312846039,1706346647242,-290.0,0.0003,2]
[312846040,1706346647252,-151.0,0.0003,2]
[312846041,1706346647261,-844.084508,0.0003,2]
[312846042,1706346647271,-301.12396322,0.0003,2]
[312846055,1706347547446,-379.76109534,0.0003,20]
[312846056,1706347547470,-33300.08543438,0.0003,45]
[312846057,1706347563021,-211.0615559,0.00030136,30]
[312846058,1706347563088,-1000.0,0.00031,31]
[312846059,1706347581950,-200.0,0.00030932,15]
[312846060,1706347589063,379.76109534,0.0003,20]
[312846061,1706347590332,-500.0,0.00030136,14]
[312846062,1706347590369,-500.14928849,0.0003041,14]
[312846063,1706347599351,-10000.0,0.00030136,10]
[312846064,1706347599387,-10000.0,0.0003041,10]
[312846065,1706347599418,-6295.72869159,0.00030684,10]
[312846066,1706347599542,479.74620967,0.00031,14]
[312846067,1706347607044,379.76109534,0.0003,20]
[312846068,1706347611094,-261.94854643,0.00030039,7]
[312846069,1706347611120,-236.74255742,0.00030136,7]
[312846070,1706347611144,-502.98959405,0.00030136,7]
[312846071,1706347618957,-5000.0,0.00029273,5]
[312846072,1706347618983,-5000.0,0.00029273,5]
[312846073,1706347619007,-5000.0,0.00029273,5]
[312846074,1706347619030,-5000.0,0.00029273,5]
[312846075,1706347619053,-5000.0,0.00029273,5]
[312846076,1706347619076,-5000.0,0.00029273,5]
[312846077,1706347619100,-5000.0,0.00029273,5]
[312846078,1706347619123,-5000.0,0.00029273,5]
[312846079,1706347619146,-5000.0,0.00029273,5]
[312846080,1706347619171,-5000.0,0.00029273,5]
[312846081,1706347619194,-5000.0,0.00029273,5]
[312846082,1706347619217,-5000.0,0.00029273,5]
[312846083,1706347619240,-5000.0,0.00029273,5]
[312846084,1706347619263,-5000.0,0.00029273,5]
[312846085,1706347619286,-5000.0,0.00029273,5]
[312846086,1706347619309,-5000.0,0.00029273,5]
[312846087,1706347619332,-5000.0,0.00029273,5]
[312846088,1706347619356,-5000.0,0.00029273,5]
[312846089,1706347619379,-5000.0,0.00029273,5]
[312846090,1706347619402,-5000.0,0.00029273,5]
[312846091,1706347623058,379.76109534,0.00031,20]
[312846092,1706347626814,-5000.0,0.00029273,5]
[312846093,1706347626839,-5000.0,0.00029273,5]
[312846094,1706347626866,-5000.0,0.00029273,5]
[312846095,1706347626888,-5000.0,0.00029273,5]
[312846096,1706347626912,-5000.0,0.00029273,5]
[312846097,1706347626935,-5000.0,0.00029273,5]
[312846098,1706347626959,-5000.0,0.0002965,5]
[312846099,1706347626982,-5000.0,0.0002965,5]
[312846100,1706347627005,-5000.0,0.0002965,5]
[312846101,1706347627031,-5000.0,0.00030041,5]
[312846102,1706347627054,-5000.0,0.00030041,5]
[312846103,1706347627077,-5000.0,0.00030041,5]
[312846104,1706347627100,-5000.0,0.00030041,5]
[312846105,1706347627123,-5000.0,0.00030041,5]
[312846106,1706347627146,-5000.0,0.00030041,5]
[312846107,1706347627169,-5000.0,0.00030041,5]
[312846108,1706347627192,-5000.0,0.00030041,5]
[312846109,1706347627215,-5000.0,0.00030041,5]
[312846110,1706347627239,-5000.0,0.00030041,5]
[312846111,1706347627263,-5000.0,0.00030041,5]
[312846113,1706347634816,-5000.0,0.00030041,5]
[312846114,1706347634852,-500.0,0.00030136,5]
[312846115,1706347634972,-503.61012727,0.0003041,5]
[312846116,1706347639060,212.13105395,0.00031,20]
[312846117,1706347651738,-155.02325349,0.0002723,4]
[312846118,1706347651760,-223.97,0.000288,4]
[312846119,1706347651783,-223.971,0.000288,4]
[312846120,1706347651805,-223.971,0.000288,4]
[312846121,1706347651828,-223.971,0.000288,4]
[312846122,1706347651851,-223.971,0.000288,4]
[312846123,1706347651875,-817.562,0.000294,4]
[312846124,1706347651897,-817.563,0.000294,4]
[312846125,1706347651921,-817.562,0.000294,4]
[312846126,1706347651943,-817.563,0.000294,4]
[312846127,1706347651965,-817.563,0.000294,4]
[312846128,1706347651987,-9132.4701419,0.0002945,4]
[312846129,1706347652013,-50000.0,0.00029566,4]
[312846130,1706347652037,-35504.83960461,0.00029566,4]
[312846131,1706347656537,-14495.16039539,0.00029566,4]
[312846132,1706347656560,-200.0,0.000296,4]
[312846133,1706347656583,-3854.75948247,0.0003,4]
[312846134,1706347656607,-81450.08012214,0.00030038,4]
[312846135,1706347724193,200.0,0.00030932,15]
[312846136,1706347733018,8315.50583561,0.00031,5]
[312846138,1706347803528,5000.0,0.00031,5]
[312846141,1706347832162,5000.0,0.00031,5]
[312846252,1706347838565,-155.02325349,0.00027022,4]
[312846254,1706347838576,-523.34168566,0.00027023,2]
[312846256,1706347838585,-1000.0,0.00027024,2]
[312846258,1706347838595,-260.56168343,0.00027025,2]
[312846260,1706347838604,-3921.59583547,0.00027027,2]
[312846262,1706347838613,-290.6944281,0.00027807,2]
[312846264,1706347838622,-4195.67881705,0.00028121,2]
[312846719,1706347846672,-5692.84435933,0.00028121,2]
[312846782,1706347898601,4999.999999,0.00031,5]
[312846783,1706347902960,5000.0,0.00029244,5]
[312846784,1706348209163,5000.0,0.00029244,5]
[312846785,1706348255744,5000.0,0.00031,30]
[312846786,1706348278680,5000.0,0.00031,30]
[312846787,1706348292805,5000.0,0.00031,30]
[312846788,1706348293662,5000.0,0.00031,30]
[312846789,1706348294332,5000.0,0.00031,30]
[312846790,1706348313439,5000.0,0.00031,30]
[312846791,1706348314521,5000.0,0.00031,30]
[312846792,1706348316655,5000.0,0.00031,30]
[312846793,1706348341733,12641.25,0.00031,30]
[312846794,1706348442617,5000.0,0.00029244,5]
[312846795,1706348802966,5000.0,0.00029244,5]
[312846971,1706349192682,5000.0,0.00029244,5]
[312846972,1706349224497,200.0,0.00029778,15]
[312846973,1706349230488,-1000000.0,0.0004475,120]
[312846975,1706349266974,224.84714308,0.00028,7]
[312846976,1706349273686,-1000000.0,0.0004475,120]
[312846979,1706349290491,-1000.0,0.00032,32]
[312846980,1706349290530,-151.01661183,0.00032395,30]
[312846981,1706349290566,-1000.0,0.00033,33]
[312846982,1706349290589,-5488.29534813,0.00033,30]
[312846983,1706349290631,-1000.0,0.00034,34]
[312846984,1706349290685,-1000.0,0.00035,35]
[312846985,1706349290713,-19046.29228631,0.00035,30]
[312846986,1706349290762,-1743.187677,0.00035616,120]
[312846987,1706349290792,-1000.0,0.00036,36]
[312846988,1706349290829,-1000.0,0.00037,37]
[312846989,1706349290854,-1175.59889736,0.00037298,120]
[312846990,1706349290879,-1000.0,0.00038,38]
[312846991,1706349290904,-1000.0,0.00039,39]
[312846992,1706349290929,-1000.0,0.000399,120]
[312846993,1706349290952,-6830.54,0.0003999,61]
[312846994,1706349290977,-10000.0,0.0003999,61]
[312846995,1706349291001,-80000.0,0.0003999,60]
[312846996,1706349291025,-4247.16841782,0.0004,120]
[312846997,1706349291049,-171.45774358,0.0004,120]
[312846998,1706349291073,-1820.96890737,0.0004,30]
[312846999,1706349291097,-1000.0,0.0004,40]
[312847000,1706349291120,-5000.0,0.0004,120]
[312847001,1706349291144,-5000.0,0.0004,120]
[312847002,1706349291168,-5000.0,0.0004,120]
[312847003,1706349291191,-119435.8019438,0.0004,120]
[312847004,1706349291215,-600.0,0.0004,30]
[312847005,1706349291239,-3430.92,0.0004049,62]
[312847006,1706349291264,-1000.0,0.000405,30]
[312847007,1706349291291,-1208.13289462,0.0004054,30]
[312847008,1706349291314,-208.4091562,0.000407,120]